bitfinex-derivatives/quotes_SOLF0:USTF0_20250507
["timestamp","ask_amount","ask_price","bid_price","bid_amount"]
[1746640333183,6.8584,145.79,145.76,2.1133]
[1746640333685,31.4,145.81,145.75,31.4]
[1746640333984,31.4,145.81,145.59,592.36]
[1746640334185,6.8619,145.71,145.65,6.8646]
[1746640334383,32.78,145.74,145.63,36.857]
[1746640334786,6.8624,145.7,145.63,43.7226]
[1746640334986,29.82434484,145.73,145.63,36.857]
[1746640335290,32.78,145.74,145.63,36.857]
[1746640335483,29.82434484,145.73,145.63,36.857]
[1746640335789,6.8628,145.7,145.63,43.7222]
[1746640336180,32.78,145.74,145.63,36.857]
[1746640336381,29.82434484,145.72,145.63,2.0257]
[1746640336789,29.82434484,145.72,145.58,37.3501]
[1746640336991,29.82434484,145.72,145.58,39.3758]
[1746640337488,6.8645,145.66,145.6,6.867]
[1746640337894,35.28,145.68,145.58,39.3758]
[1746640338087,36.68,145.71,145.59,29.82434484]
[1746640338289,6.8624,145.7,145.59,29.82434484]
[1746640338583,36.68,145.71,145.59,29.82434484]
[1746640339183,36.68,145.71,145.58,39.3758]
[1746640339389,66.52434484,145.75,145.59,29.82434484]
[1746640339593,66.52434484,145.75,145.65,6.8643]
[1746640339797,66.52434484,145.75,145.64,36.7]
[1746640339991,6.8632,145.69,145.64,43.5651]
[1746640340192,66.52434484,145.75,145.64,36.7]
[1746640340695,1.37230684,145.74,145.61,43.5665]
[1746640340994,29.82434484,145.72,145.61,36.7]
[1746640341195,36.7,145.71,145.62,9.0627]
[1746640341495,36.7,145.71,145.62,2.1967]
[1746640341794,6.8636,145.68,145.63,6.8656]
[1746640341989,36.7,145.71,145.62,2.1967]
[1746640342899,1.37230684,145.74,145.62,2.1967]
[1746640343097,1.37230684,145.74,145.63,29.82434484]
[1746640343287,6.8597,145.76,145.72,6.8611]
[1746640343690,36.7,145.79,145.69,36.7]
[1746640343995,36.7,145.79,145.7,2.0033]
[1746640344692,6.8599,145.76,145.72,6.8611]
[1746640344891,23.97853167,145.81,145.7,2.0033]
[1746640345196,6.859,145.78,145.74,6.8603]
[1746640345390,23.97853167,145.81,145.74,6.8603]
[1746640345593,23.97853167,145.81,145.7,2.0033]
[1746640345792,53.80287651,145.81,145.7,2.0033]
[1746640346389,29.82434484,145.81,145.7,2.0033]
[1746640346595,6.8599,145.76,145.72,6.8611]
[1746640346904,29.82434484,145.81,145.7,2.0033]
[1746640347400,29.82434484,145.74,145.67,2.1642]
[1746640347601,36.7,145.73,145.63,36.7]
[1746640347897,6.8627,145.7,145.66,6.8642]
[1746640348295,6.8628,145.69,145.66,6.8642]
[1746640348492,29.82434484,145.71,145.63,36.7]
[1746640348695,29.82434484,145.71,145.61,2.1637]
[1746640348896,6.864,145.67,145.63,6.8653]
[1746640349296,6.865,145.65,145.61,2.1637]
[1746640349703,29.82434484,145.68,145.61,2.1637]
[1746640350300,6.8655,145.64,145.61,2.1637]
[1746640351097,66.52434484,145.69,145.61,2.1637]
[1746640351601,6.8644,145.66,145.62,6.866]
[1746640351801,36.7,145.69,145.61,2.1637]
[1746640351990,36.7,145.69,145.61,38.8637]
[1746640352191,36.7,145.72,145.61,38.8637]
[1746640352595,6.8622,145.71,145.61,68.68804484]
[1746640353599,43.5615,145.72,145.61,68.68804484]
[1746640353800,43.5615,145.72,145.68,6.8629]
[1746640354000,62.29853167,145.75,145.65,38.32]
[1746640354300,23.97853167,145.75,145.65,38.32]
[1746640354801,12.03804409,145.74,145.65,38.32]
[1746640355102,5.17754409,145.73,145.71,6.8616]
[1746640355498,5.17754409,145.72,145.65,38.32]
[1746640355895,5.17754409,145.71,145.65,38.32]
[1746640356100,5.17754409,145.71,145.7,6.8623]
[1746640356501,5.17754409,145.71,145.65,38.32]
[1746640356702,5.17754409,145.71,145.67,6.8633]
[1746640356901,5.17754409,145.7,145.67,6.8633]
[1746640357097,5.17754409,145.69,145.67,6.8633]
[1746640357306,29.82434484,145.75,145.66,6.8641]
[1746640357501,38.32,145.74,145.66,6.8641]
[1746640358005,6.8631,145.69,145.66,6.8641]
[1746640358498,38.32,145.74,145.67,6.8637]
[1746640358699,6.8627,145.7,145.67,6.8637]
[1746640359099,5.14896786,145.69,145.67,6.8637]
[1746640359300,6.8627,145.7,145.67,6.8637]
[1746640359599,6.8619,145.71,145.68,6.863]
[1746640359807,38.32,145.74,145.65,38.32]
[1746640360506,6.8617,145.72,145.69,6.8627]
[1746640361704,38.32,145.74,145.65,38.32]
[1746640362104,6.8625,145.7,145.67,6.8637]
[1746640363307,6.8625,145.7,145.65,38.32]
[1746640363308,5.14937773,145.69,145.68,6.8633]
[1746640363506,6.8625,145.7,145.68,6.8633]
[1746640363699,6.8621,145.71,145.65,38.32]
[1746640364004,38.32,145.74,145.65,38.32]
[1746640364704,6.8631,145.69,145.65,38.32]
[1746640365001,38.32,145.74,145.65,38.32]
[1746640365509,6.8629,145.69,145.67,6.8635]
[1746640365802,38.32,145.74,145.65,38.32]
[1746640366106,6.863,145.69,145.66,6.8641]
[1746640366603,6.8625,145.7,145.67,6.8635]
[1746640366803,38.32,145.74,145.65,38.32]
[1746640367308,29.82434484,145.72,145.61,40.4837]
[1746640368503,29.82434484,145.69,145.6,1.988]
[1746640368714,38.32,145.68,145.6,1.988]
[1746640369006,1.37249519,145.72,145.61,29.82434484]
[1746640369306,6.8621,145.71,145.62,38.32]
[1746640369708,8.23409519,145.72,145.62,38.32]
[1746640369906,1.37249519,145.72,145.62,38.32]
[1746640370907,1.37249519,145.72,145.65,6.8644]
[1746640371107,1.37249519,145.72,145.62,38.32]
[1746640371604,1.37249519,145.72,145.65,6.8647]
[1746640372109,6.8635,145.68,145.65,6.8647]
[1746640372508,1.37249519,145.72,145.64,6.865]
[1746640372712,6.864,145.67,145.64,6.865]
[1746640372905,1.37249519,145.72,145.62,38.32]
[1746640373104,38.32,145.71,145.6,1.988]
[1746640373407,29.82434484,145.68,145.6,1.988]
[1746640373603,6.8664,145.62,145.6,1.988]
[1746640373908,38.32,145.67,145.58,2.0776]
[1746640374096,6.866,145.63,145.58,8.9456]
[1746640374300,38.32,145.67,145.58,8.9456]
[1746640374702,6.8661,145.63,145.58,8.9456]
[1746640375003,38.32,145.67,145.58,2.0776]
[1746640375305,29.82434484,145.66,145.58,2.0776]
[1746640376008,29.82434484,145.66,145.57,1.9892]
[1746640376309,6.8683,145.58,145.53,39.9]
[1746640377010,29.82434484,145.66,145.53,39.9]
[1746640378509,39.7051,145.67,145.53,39.9]
[1746640378710,29.82434484,145.65,145.53,39.9]
[1746640379908,39.7051,145.67,145.53,39.9]
[1746640380208,29.82434484,145.66,145.53,39.9]
[1746640382808,29.82434484,145.63,145.53,39.9]
[1746640383012,41.8,145.62,145.53,39.9]
[1746640383515,29.82434484,145.6,145.51,6.352]
[1746640383710,29.82434484,145.57,145.45,41.8]
[1746640384015,73.30434484,145.57,145.45,45.8648]
[1746640384207,29.82434484,145.54,145.45,45.8648]
[1746640384707,29.82434484,145.51,145.43,2.1287]
[1746640384907,73.30434484,145.51,145.42,43.48]
[1746640385109,43.48,145.51,145.38,43.48]
[1746640385309,29.82434484,145.49,145.38,43.48]
[1746640386212,43.48,145.51,145.38,43.48]
[1746640386413,29.82434484,145.49,145.38,43.48]
[1746640387514,1.3865,145.5,145.36,2.1684]
[1746640387816,29.82434484,145.46,145.33,4.1517]
[1746640388019,29.82434484,145.43,145.33,4.1517]
[1746640388212,45.12,145.42,145.33,4.1517]
[1746640388409,45.12,145.43,145.33,4.1517]
[1746640389207,46.64,145.47,145.34,29.82434484]
[1746640389407,46.64,145.47,145.35,46.64]
[1746640389610,76.46434484,145.47,145.35,46.64]
[1746640389813,46.64,145.47,145.33,4.1517]
[1746640390017,47.83721338,145.47,145.33,4.1517]
[1746640390915,46.64,145.47,145.33,4.1517]
[1746640391114,29.82434484,145.44,145.33,4.1517]
[1746640391315,46.64,145.47,145.33,4.1517]
[1746640391620,29.82434484,145.44,145.33,4.1517]
[1746640391816,46.64,145.47,145.33,4.1517]
[1746640392015,1.19733696,145.46,145.33,4.1517]
[1746640392317,29.82434484,145.45,145.33,4.1517]
[1746640392715,29.82434484,145.42,145.33,2.0779]
[1746640392921,49.78,145.41,145.33,2.0779]
[1746640393421,49.78,145.41,145.31,2.0659]
[1746640393722,51.1703,145.41,145.31,2.0659]
[1746640394121,6.8797,145.34,145.3,6.92548251]
[1746640394321,51.1703,145.41,145.3,6.92548251]
[1746640395030,29.82434484,145.4,145.3,6.92548251]
[1746640395524,29.82434484,145.37,145.3,6.92548251]
[1746640395920,29.82434484,145.4,145.3,6.92548251]
[1746640396621,51.1703,145.41,145.3,6.92548251]
[1746640397016,51.1703,145.41,145.32,6.8802]
[1746640397222,49.78,145.41,145.3,6.92548251]
[1746640397419,1.37551581,145.4,145.36,6.8783]
[1746640397616,1.37551581,145.4,145.32,49.8]
[1746640397822,1.37551581,145.4,145.33,6.3605]
[1746640398025,6.8778,145.38,145.34,6.8792]
[1746640398217,6.8778,145.38,145.33,6.3605]
[1746640398218,1.37551581,145.4,145.33,6.3605]
[1746640400122,1.37551581,145.4,145.38,6.8773]
[1746640400321,1.389,145.49,145.35,29.82434484]
[1746640400523,51.189,145.49,145.37,49.8]
[1746640401224,6.8736,145.47,145.37,49.8]
[1746640401423,1.37494843,145.46,145.37,49.8]
[1746640401729,1.37494843,145.46,145.44,6.8746]
[1746640402028,1.37494843,145.46,145.37,49.8]
[1746640402830,6.8747,145.44,145.4,6.8764]
[1746640403127,1.37494843,145.46,145.37,49.8]
[1746640403925,6.8747,145.44,145.4,6.8762]
[1746640404126,1.37494843,145.46,145.4,6.8762]
[1746640404427,79.62434484,145.49,145.37,49.8]
[1746640404629,6.8756,145.42,145.38,6.8773]
[1746640405126,29.82434484,145.48,145.39,6.8768]
[1746640405322,29.82434484,145.48,145.37,49.8]
[1746640405623,6.8744,145.45,145.37,49.8]
[1746640405830,6.8744,145.45,145.41,6.8757]
[1746640406229,6.8739,145.46,145.42,6.8755]
[1746640406631,49.8,145.49,145.37,49.8]
[1746640406833,6.8746,145.45,145.37,49.8]
[1746640407127,49.8,145.49,145.37,79.62434484]
[1746640407331,6.8731,145.48,145.44,6.8744]
[1746640407626,6.8731,145.48,145.37,79.62434484]
[1746640407828,49.8,145.49,145.37,79.62434484]
[1746640408029,49.8,145.53,145.37,79.62434484]
[1746640409229,29.82434484,145.51,145.37,49.8]
[1746640409426,29.82434484,145.48,145.37,49.8]
[1746640409730,6.8747,145.44,145.37,49.8]
[1746640410131,29.82434484,145.48,145.37,49.8]
[1746640410336,6.8753,145.43,145.37,49.8]
[1746640410634,79.62434484,145.48,145.37,49.8]
[1746640410833,6.8749,145.44,145.41,6.876]
[1746640411033,49.8,145.48,145.37,49.8]
[1746640411332,56.6729,145.48,145.44,6.8741]
[1746640411536,49.8,145.52,145.37,79.62434484]
[1746640411834,6.8727,145.48,145.45,6.8738]
[1746640412339,6.8727,145.48,145.37,79.62434484]
[1746640412636,49.8,145.52,145.37,79.62434484]
[1746640412935,6.8724,145.49,145.46,6.8734]
[1746640413132,49.8,145.52,145.46,6.8734]
[1746640413332,49.8,145.52,145.37,79.62434484]
[1746640413733,29.82434484,145.51,145.37,49.8]
[1746640414137,6.8733,145.47,145.44,6.8745]
[1746640414735,6.8729,145.48,145.45,6.8741]
[1746640415135,49.8,145.52,145.37,49.8]
[1746640415433,6.8725,145.49,145.46,6.8733]
[1746640415736,49.8,145.52,145.42,49.8]
[1746640415934,49.8,145.52,145.43,6.389]
[1746640416133,6.872,145.5,145.43,6.389]
[1746640416332,49.8,145.52,145.43,6.389]
[1746640416532,6.8704,145.53,145.5,6.8717]
[1746640417435,6.8698,145.55,145.47,49.8]
[1746640417832,23.97853167,145.58,145.47,49.8]
[1746640418233,23.97853167,145.58,145.49,29.82434484]
[1746640418443,23.97853167,145.58,145.56,6.8687]
[1746640419043,23.97853167,145.58,145.52,49.8]
[1746640419949,23.97853167,145.58,145.57,6.8685]
[1746640420144,23.97853167,145.58,145.52,49.8]
[1746640420344,49.8,145.63,145.52,49.8]
[1746640421546,56.6659,145.63,145.6,6.867]
[1746640421941,49.8,145.63,145.52,49.8]
[1746640422249,23.97853167,145.64,145.52,49.8]
[1746640422847,23.97853167,145.64,145.56,6.8687]
[1746640423542,29.82434484,145.66,145.56,6.8687]
[1746640424143,29.82434484,145.66,145.57,6.8683]
[1746640424651,6.8673,145.6,145.57,6.8683]
[1746640425546,6.8676,145.59,145.56,6.8687]
[1746640425943,29.82434484,145.66,145.52,49.8]
[1746640426949,6.8676,145.59,145.56,6.8688]
[1746640427149,29.82434484,145.66,145.52,49.8]
[1746640427352,29.82434484,145.63,145.52,49.8]
[1746640427550,29.82434484,145.6,145.52,49.8]
[1746640427752,29.82434484,145.6,145.5,6.1561]
[1746640428051,29.82434484,145.6,145.48,48.9]
[1746640428546,6.8694,145.55,145.48,48.9]
[1746640428745,29.82434484,145.6,145.48,48.9]
[1746640428946,644.0227,145.62,145.48,48.9]
[1746640429150,6.8683,145.58,145.55,6.8691]
[1746640429552,644.0227,145.62,145.48,48.9]
[1746640429748,6.8677,145.59,145.56,6.8686]
[1746640430350,6.8672,145.6,145.57,6.8684]
[1746640430852,6.8668,145.61,145.58,6.8679]
[1746640431056,48.9,145.62,145.54,6.447]
[1746640431350,6.8673,145.6,145.57,6.8682]
[1746640431549,48.9,145.62,145.54,6.447]
[1746640431948,48.9,145.66,145.54,6.447]
[1746640432452,48.9,145.66,145.58,6.8677]
[1746640432753,48.9,145.66,145.54,6.447]
[1746640433052,6.8664,145.62,145.59,6.8672]
[1746640433453,48.9,145.66,145.54,6.447]
[1746640433646,6.8658,145.63,145.6,6.8667]
[1746640434052,48.9,145.66,145.54,6.447]
[1746640434252,6.8654,145.64,145.61,6.8664]
[1746640434456,48.9,145.66,145.54,6.447]
[1746640434649,29.82434484,145.65,145.54,6.447]
[1746640434850,29.82434484,145.65,145.57,6.8682]
[1746640435051,29.82434484,145.65,145.54,6.447]
[1746640435455,48.9,145.66,145.54,6.447]
[1746640435954,6.865,145.65,145.62,6.8658]
[1746640436454,6.8652,145.64,145.62,6.8658]
[1746640436655,6.8652,145.64,145.61,6.8664]
[1746640436955,6.8652,145.64,145.59,47.3]
[1746640437456,593.74,145.69,145.59,47.3]
[1746640437658,593.74,145.69,145.63,6.8654]
[1746640437856,593.74,145.69,145.59,47.3]
[1746640438152,593.74,145.69,145.65,6.8646]
[1746640438358,47.3,145.7,145.6,2.1351]
[1746640438562,6.864,145.67,145.61,2.1034]
[1746640438855,6.864,145.67,145.64,6.865]
[1746640439158,47.3,145.7,145.61,4.2136]
[1746640442659,47.3,145.7,145.59,47.3]
[1746640442854,29.82434484,145.67,145.59,47.3]
[1746640443763,18.42338036,145.68,145.59,47.3]
[1746640444058,18.42338036,145.65,145.54,2.0268]
[1746640444252,47.3,145.64,145.54,2.0268]
[1746640444454,50.0644,145.64,145.54,2.0268]
[1746640444661,18.42338036,145.62,145.53,49.4653]
[1746640445460,18.42338036,145.62,145.53,47.3]
[1746640446161,18.42338036,145.62,145.5,2.0643]
[1746640446162,18.42338036,145.59,145.5,2.0643]
[1746640446358,47.3,145.59,145.5,2.0643]
[1746640447963,47.3,145.59,145.49,640.76]
[1746640448163,29.97406562,145.57,145.47,2.0268]
[1746640448355,1.3811,145.56,145.47,2.0268]
[1746640450465,1.3811,145.56,145.45,47.3]
[1746640450760,31.35826562,145.55,145.45,47.3]
[1746640450957,45.78,145.54,145.45,47.3]
[1746640452360,75.75406562,145.54,145.45,47.3]
[1746640453363,45.78,145.54,145.45,47.3]
[1746640454565,45.78,145.54,145.44,2.0682]
[1746640454566,75.75406562,145.54,145.44,2.0682]
[1746640456665,45.78,145.54,145.44,2.0682]
[1746640457166,639.42,145.58,145.44,2.0682]
[1746640459767,29.97406562,145.57,145.44,2.0682]
[1746640459968,29.97406562,145.54,145.44,2.0682]
[1746640462669,45.8,145.53,145.44,2.0682]
[1746640466573,45.8,145.57,145.44,2.0682]
[1746640467272,29.97406562,145.56,145.44,2.0682]
[1746640469582,1.3878,145.55,145.44,2.0682]
[1746640469872,18.4588063,145.54,145.44,2.0682]
[1746640470975,64.2588063,145.57,145.44,2.0682]
[1746640471667,45.8,145.57,145.44,2.0682]
[1746640472177,18.4588063,145.56,145.44,2.0682]
[1746640472877,45.8,145.57,145.44,2.0682]
[1746640474076,64.2588063,145.57,145.44,2.0682]
[1746640476679,45.8,145.57,145.44,2.0682]
[1746640480083,6.8697,145.55,145.44,2.0682]
[1746640480484,45.8,145.57,145.45,18.4588063]
[1746640480684,1.384,145.59,145.46,44.32]
[1746640480889,1.384,145.59,145.48,18.4588063]
[1746640481184,1.384,145.59,145.53,6.87]
[1746640481685,1.384,145.59,145.51,44.32]
[1746640481884,6.8688,145.57,145.54,6.8699]
[1746640482085,1.384,145.59,145.52,2.1526]
[1746640482779,6.8692,145.56,145.53,6.87]
[1746640483185,1.384,145.59,145.52,2.1526]
[1746640483980,6.8687,145.57,145.54,6.8696]
[1746640484188,1.384,145.59,145.52,2.1526]
[1746640484486,6.8696,145.55,145.52,9.0232]
[1746640487787,6.8696,145.55,145.53,6.8702]
[1746640487988,1.384,145.59,145.53,6.8702]
[1746640488290,1.384,145.59,145.53,6.8703]
[1746640488590,6.8692,145.56,145.53,6.8703]
[1746640489296,6.8694,145.55,145.53,6.8703]
[1746640489789,1.384,145.59,145.52,2.1526]
[1746640490291,6.8682,145.58,145.55,6.8691]
[1746640491387,44.32,145.61,145.55,6.8691]
[1746640491888,6.8683,145.58,145.55,6.8691]
[1746640492390,6.8688,145.57,145.54,6.8696]
[1746640492591,44.32,145.61,145.52,2.1526]
[1746640492791,44.32,145.61,145.55,6.8692]
[1746640492992,6.8686,145.57,145.55,6.8692]
[1746640493391,44.32,145.61,145.55,6.8692]
[1746640493592,44.32,145.61,145.56,6.8689]
[1746640494190,6.8682,145.58,145.56,6.8689]
[1746640494387,18.4588063,145.6,145.52,2.1526]
[1746640494891,6.8704,145.53,145.52,2.1526]
[1746640495086,18.4588063,145.6,145.52,2.1526]
[1746640495286,6.8698,145.55,145.52,2.1526]
[1746640495789,6.8694,145.56,145.52,2.1526]
[1746640495990,18.4588063,145.6,145.52,2.1526]
[1746640496189,44.32,145.61,145.55,6.8692]
[1746640496393,44.32,145.61,145.52,2.1526]
[1746640496795,44.32,145.61,145.55,6.869]
[1746640496993,6.8683,145.58,145.55,6.869]
[1746640497589,6.8683,145.58,145.56,6.8689]
[1746640497794,44.32,145.61,145.52,44.8926]
[1746640498194,6.8682,145.58,145.55,6.8691]
[1746640498493,44.32,145.61,145.55,6.8691]
[1746640498695,6.8683,145.58,145.55,6.8692]
[1746640499297,6.8687,145.57,145.54,6.8698]
[1746640499697,44.32,145.61,145.52,44.8926]
[1746640499893,6.8682,145.58,145.52,44.8926]
[1746640500296,44.32,145.61,145.52,44.8926]
[1746640500494,18.4588063,145.57,145.47,42.74]
[1746640500798,18.4588063,145.54,145.46,1.9988]
[1746640500986,42.74,145.56,145.46,1.9988]
[1746640500987,18.4588063,145.51,145.46,1.9988]
[1746640501490,6.8732,145.47,145.46,1.9988]
[1746640501694,61.1988063,145.51,145.46,1.9988]
[1746640501995,6.8731,145.48,145.46,1.9988]
[1746640502289,61.1988063,145.51,145.37,4.1779]
[1746640502494,18.4588063,145.48,145.38,1.9988]
[1746640503299,18.4588063,145.48,145.39,6.8768]
[1746640503300,6.8755,145.43,145.39,6.8768]
[1746640503600,42.74,145.46,145.38,1.9988]
[1746640503800,6.8747,145.44,145.4,6.8763]
[1746640504001,42.74,145.46,145.4,6.8763]
[1746640504308,6.8754,145.43,145.39,6.8767]
[1746640504800,42.74,145.46,145.39,6.8769]
[1746640505001,42.74,145.46,145.38,1.9988]
[1746640505300,6.8756,145.42,145.39,6.877]
[1746640505500,18.4588063,145.45,145.38,1.9988]
[1746640505696,19.8431063,145.45,145.38,1.9988]
[1746640506400,6.877,145.39,145.38,1.9988]
[1746640506594,19.8431063,145.45,145.38,1.9988]
[1746640507597,6.8767,145.4,145.38,1.9988]
[1746640507999,19.8431063,145.45,145.38,1.9988]
[1746640508198,6.877,145.39,145.36,6.8783]
[1746640508405,19.8431063,145.45,145.35,6.8787]
[1746640508704,19.8431063,145.45,145.34,2.1201]
[1746640508901,6.8772,145.39,145.36,6.8783]
[1746640509202,21.04054626,145.45,145.34,2.1201]
[1746640509395,6.8778,145.38,145.35,6.8787]
[1746640509595,6.8778,145.38,145.34,2.1201]
[1746640509596,18.4588063,145.42,145.34,2.1201]
[1746640509803,42.76,145.41,145.34,2.1201]
[1746640509998,6.8777,145.38,145.34,8.9991]
[1746640510196,42.76,145.41,145.34,8.9991]
[1746640510392,42.76,145.41,145.34,2.1201]
[1746640511095,42.76,145.41,145.29,44.8171]
[1746640511296,42.76,145.41,145.3,9.07798251]
[1746640511499,18.4588063,145.39,145.3,9.07798251]
[1746640511699,1.3863,145.38,145.3,9.07798251]
[1746640512204,6.8794,145.34,145.31,6.8804]
[1746640512703,1.3863,145.38,145.3,9.07798251]
[1746640513403,6.8782,145.37,145.33,6.8794]
[1746640513603,1.3863,145.38,145.33,6.8794]
[1746640514603,1.3863,145.38,145.34,6.8793]
[1746640515006,6.8783,145.37,145.34,6.8793]
[1746640515204,1.3863,145.38,145.33,6.8797]
[1746640515406,1.3863,145.38,145.3,9.07798251]
[1746640515601,6.8801,145.33,145.3,9.07798251]
[1746640516604,6.8804,145.32,145.3,9.07798251]
[1746640516806,1.3863,145.38,145.3,9.07798251]
[1746640517205,18.4588063,145.36,145.3,6.92548251]
[1746640517406,41.32,145.35,145.3,6.92548251]
[1746640517803,6.8808,145.31,145.3,6.92548251]
[1746640518305,6.8808,145.31,145.3,1.72745072]
[1746640519103,18.4588063,145.33,145.2,43.3441]
[1746640519317,18.4588063,145.3,145.21,9.0603]
[1746640519508,6.8841,145.24,145.21,9.0603]
[1746640520007,6.8834,145.26,145.22,6.8846]
[1746640520210,41.32,145.29,145.22,6.8846]
[1746640520612,6.8837,145.25,145.21,9.0603]
[1746640520908,6.8837,145.25,145.21,2.175]
[1746640521305,6.8841,145.24,145.21,2.175]
[1746640521508,41.32,145.29,145.21,2.175]
[1746640522206,41.32,145.29,145.21,43.515]
[1746640522703,6.8834,145.26,145.22,6.8847]
[1746640522904,6.8834,145.26,145.21,43.515]
[1746640523105,41.32,145.29,145.21,43.515]
[1746640523305,1.37646249,145.3,145.21,43.515]
[1746640524111,1.37646249,145.3,145.23,18.4588063]
[1746640524610,1.37646249,145.3,145.29,6.8817]
[1746640525013,594.32,145.39,145.26,41.34]
[1746640525310,41.34,145.39,145.27,2.0322]
[1746640525610,6.8776,145.38,145.34,6.8793]
[1746640526013,41.34,145.39,145.27,2.0322]
[1746640526211,41.34,145.39,145.28,2.1233]
[1746640526817,6.8779,145.38,145.28,2.1233]
[1746640527011,41.34,145.39,145.28,2.1233]
[1746640527410,6.8792,145.35,145.28,2.1233]
[1746640527917,6.8786,145.36,145.28,2.1233]
[1746640528216,41.34,145.39,145.28,2.1233]
[1746640528417,41.34,145.39,145.33,6.8795]
[1746640528813,6.8778,145.38,145.28,2.1233]
[1746640529312,6.878,145.37,145.28,2.1233]
[1746640530017,6.8776,145.38,145.28,2.1233]
[1746640530218,41.34,145.39,145.34,6.8793]
[1746640530619,6.8776,145.38,145.29,2.0088]
[1746640530918,6.8776,145.38,145.34,6.879]
[1746640531119,6.8782,145.37,145.31,41.34]
[1746640531417,41.34,145.39,145.31,41.34]
[1746640531719,6.8787,145.36,145.31,41.34]
[1746640532015,6.8787,145.36,145.32,6.88]
[1746640532221,6.879,145.35,145.32,6.88]
[1746640532819,41.34,145.39,145.31,48.2206]
[1746640533007,41.34,145.39,145.31,41.34]
[1746640534010,41.34,145.39,145.3,6.8811]
[1746640534217,42.71561042,145.39,145.3,6.8811]
[1746640534414,42.71561042,145.39,145.29,2.0088]
[1746640534616,18.4588063,145.37,145.28,2.1233]
[1746640535119,6.8797,145.34,145.28,2.1233]
[1746640535317,18.4588063,145.37,145.28,2.1233]
[1746640535513,61.17441672,145.39,145.28,2.1233]
[1746640535711,6.8797,145.34,145.28,2.1233]
[1746640536119,6.88,145.33,145.3,6.8809]
[1746640536516,61.17441672,145.39,145.28,2.1233]
[1746640536717,6.8801,145.33,145.29,6.8813]
[1746640537015,1.37570504,145.38,145.28,2.1233]
[1746640537322,1.37570504,145.38,145.3,6.881]
[1746640537510,1.37570504,145.38,145.28,2.1233]
[1746640537714,6.8802,145.33,145.28,2.1233]
[1746640538120,6.8796,145.34,145.31,6.8806]
[1746640538427,1.37570504,145.38,145.28,2.1233]
[1746640538918,6.8792,145.35,145.28,2.1233]
[1746640539112,1.37570504,145.38,145.28,2.1233]
[1746640541729,6.8803,145.32,145.29,6.8814]
[1746640542220,41.34,145.34,145.24,2.1611]
[1746640542427,41.34,145.34,145.24,4.1949]
[1746640542929,6.8808,145.31,145.27,6.8826]
[1746640543226,41.34,145.34,145.24,4.1949]
[1746640543424,41.34,145.34,145.25,1.9977]
[1746640543622,6.8805,145.32,145.29,6.8814]
[1746640543821,41.34,145.34,145.25,1.9977]
[1746640545829,6.8799,145.33,145.25,1.9977]
[1746640546028,41.34,145.34,145.25,1.9977]
[1746640547635,41.34,145.34,145.31,6.8805]
[1746640548331,48.2196,145.34,145.31,6.8805]
[1746640549431,6.8803,145.32,145.29,6.8817]
[1746640549630,41.34,145.34,145.27,40.04]
[1746640550132,6.88,145.33,145.3,6.8809]
[1746640551635,1.37570504,145.38,145.27,40.04]
[1746640551837,41.41570504,145.38,145.27,40.04]